[Event "23rd ETCC Women 2021"]
[Site "Catez"]
[Date "2021.11.15"]
[Round "4.4"]
[White "Shuvalova, Polina"]
[Black "Melia, Salome"]
[Result "1-0"]
[ECO "B31"]
[WhiteElo "2515"]
[BlackElo "2371"]
[Annotator "ChessBase"]
[PlyCount "135"]
[EventDate "2021.11.08"]
[EventType "team-tourn"]
[EventCountry "SLO"]
[SourceTitle "playchess.com"]
[Source "ChessBase"]
[SourceQuality "1"]
[WhiteTeam "Russia"]
[BlackTeam "Georgia"]
[WhiteTeamCountry "RUS"]
[BlackTeamCountry "GEO"]
[TimeControl "40/5400+30:1800+30"]

1. e4 {[%emt 0:00:03]} c5 {[%emt 0:00:09]} 2. Nf3 {[%emt 0:00:03]} Nc6 {
[%emt 0:00:08]} 3. Bb5 {[%emt 0:00:04]} g6 {[%emt 0:00:12]} 4. Bxc6 {[%emt 0:
00:13]} dxc6 {[%emt 0:00:06]} 5. d3 {[%emt 0:00:03]} Bg7 {[%emt 0:00:05]} 6. h3
{[%emt 0:00:03]} Qc7 {[%emt 0:00:24]} 7. O-O {[%emt 0:00:30]} h6 {[%emt 0:00:
38]} 8. Nc3 {[%emt 0:00:18]} e5 {[%emt 0:00:31]} 9. Be3 {[%emt 0:01:20]} b6 {
[%emt 0:00:17]} 10. a3 {[%emt 0:00:15]} Ne7 {[%emt 0:00:27]} 11. b4 {[%emt 0:
00:32]} cxb4 {[%emt 0:00:32]} 12. axb4 {[%emt 0:00:04]} O-O {[%emt 0:00:06]}
13. Na4 {[%emt 0:20:42]} Be6 {[%emt 0:04:32]} 14. Qc1 {[%emt 0:00:42]} g5 {
[%emt 0:06:04]} 15. Ra3 {[%emt 0:23:57]} Rad8 {[%emt 0:15:58]} 16. Qa1 {
[%emt 0:02:46]} Rd7 {[%emt 0:00:26]} 17. Bc1 {[%emt 0:05:15]} Ng6 {[%emt 0:12:
38]} 18. Bb2 {[%emt 0:01:00]} f5 {[%emt 0:09:21]} 19. exf5 {[%emt 0:00:36]}
Bxf5 {[%emt 0:00:56]} 20. Re1 {[%emt 0:02:18]} Re7 {[%emt 0:02:23]} 21. d4 {
[%emt 0:09:30]} e4 {[%emt 0:10:23]} 22. Nd2 {[%emt 0:00:42]} Nf4 {[%emt 0:05:
35]} 23. Nf1 {[%emt 0:07:25]} Qd6 {[%emt 0:03:50]} 24. Rb3 {[%emt 0:05:12]} Rd8
{[%emt 0:06:27]} 25. b5 {[%emt 0:06:48]} Bxd4 {[%emt 0:12:12]} 26. bxc6 {
[%emt 0:04:13]} Bxb2 {[%emt 0:02:08]} 27. Nxb2 {[%emt 0:01:00]} Qxc6 {[%emt 0:
00:31]} 28. Ne3 {[%emt 0:02:07]} Be6 {[%emt 0:00:47]} 29. Ra3 {[%emt 0:02:49]}
a5 {[%emt 0:00:07]} 30. Na4 {[%emt 0:00:46]} Rf7 {[%emt 0:03:38]} 31. Qe5 {
[%emt 0:01:13]} Ng6 {[%emt 0:01:05]} 32. Qc3 {[%emt 0:01:11]} Qxc3 {[%emt 0:01:
04]} 33. Nxc3 {[%emt 0:00:13]} Rd4 {[%emt 0:00:54]} 34. Rb1 {[%emt 0:00:56]}
Rb4 {[%emt 0:01:17]} 35. Raa1 {[%emt 0:01:03]} Kg7 {[%emt 0:01:25]} 36. Rxb4 {
[%emt 0:00:19]} axb4 {[%emt 0:00:01]} 37. Nxe4 {[%emt 0:00:05]} Nf4 {[%emt 0:
00:40]} 38. Rb1 {[%emt 0:01:34]} Nd5 {[%emt 0:00:27]} 39. Nxd5 {[%emt 0:00:25]}
Bxd5 {[%emt 0:00:01]} 40. Rxb4 {[%emt 0:01:15]} Bxe4 {[%emt 0:00:54]} 41. Rxe4
{[%emt 0:30:05]} Rc7 {[%emt 0:30:25]} 42. Re2 {[%emt 0:00:22]} b5 {[%emt 0:00:
00]} 43. Kf1 {[%emt 0:00:00]} b4 {[%emt 0:00:00]} 44. Ke1 {[%emt 0:00:00]} h5 {
[%emt 0:00:00]} 45. Kd2 {[%emt 0:00:00]} Rd7+ {[%emt 0:00:00]} 46. Kc1 {
[%emt 0:00:00]} Rd4 {[%emt 0:00:00]} 47. f3 {[%emt 0:00:00]} Kf6 {[%emt 0:00:
00]} 48. Re4 {[%emt 0:00:00]} Rxe4 {[%emt 0:03:04]} 49. fxe4 {[%emt 0:00:00]}
Ke5 {[%emt 0:00:01]} 50. Kb2 {[%emt 0:00:00]} Kxe4 {[%emt 0:00:20]} 51. Kb3 {
[%emt 0:00:00]} Kf4 {[%emt 0:00:55]} 52. Kxb4 {[%emt 0:00:00]} Kg3 {[%emt 0:00:
01]} 53. c4 {[%emt 0:00:00]} Kxg2 {[%emt 0:00:23]} 54. c5 {[%emt 0:00:00]} Kxh3
{[%emt 0:02:19]} 55. c6 {[%emt 0:00:00]} g4 {[%emt 0:00:32]} 56. c7 {[%emt 0:
00:00]} h4 {[%emt 0:00:34]} 57. c8=Q {[%emt 0:00:00]} Kg3 {[%emt 0:00:15]} 58.
Qc7+ {[%emt 0:00:00]} Kg2 {[%emt 0:00:04]} 59. Qf4 {[%emt 0:00:00]} Kh3 {
[%emt 0:00:13]} 60. Qf1+ {[%emt 0:00:00]} Kh2 {[%emt 0:00:41]} 61. Qf2+ {
[%emt 0:00:00]} Kh3 {[%emt 0:00:04]} 62. Qf5 {[%emt 0:00:00]} Kg3 {[%emt 0:00:
09]} 63. Kc3 {[%emt 0:00:00]} h3 {[%emt 0:00:01]} 64. Kd2 {[%emt 0:00:00]} h2 {
[%emt 0:01:03]} 65. Qf1 {[%emt 0:00:00]} Kh4 {[%emt 0:00:31]} 66. Qg2 {[%emt 0:
00:00]} g3 {[%emt 0:00:35]} 67. Ke2 {[%emt 0:00:00]} Kg4 {[%emt 0:00:11]} 68.
Ke3 {[%emt 0:00:00]} 1-0

[Event "23rd ETCC Women 2021"]
[Site "Catez"]
[Date "2021.11.15"]
[Round "4.5"]
[White "Danielian, Elina"]
[Black "Brunello, Marina"]
[Result "1-0"]
[ECO "D02"]
[WhiteElo "2450"]
[BlackElo "2359"]
[Annotator "ChessBase"]
[PlyCount "95"]
[EventDate "2021.11.08"]
[EventType "team-tourn"]
[EventCountry "SLO"]
[SourceTitle "playchess.com"]
[Source "ChessBase"]
[SourceQuality "1"]
[WhiteTeam "Armenia"]
[BlackTeam "Italy"]
[WhiteTeamCountry "ARM"]
[BlackTeamCountry "ITA"]
[TimeControl "40/5400+30:1800+30"]

1. Nf3 {[%emt 0:00:03]} d5 {[%emt 0:00:08]} 2. g3 {[%emt 0:00:05]} c6 {[%emt 0:
00:19]} 3. Bg2 {[%emt 0:00:06]} Bg4 {[%emt 0:02:29]} 4. O-O {[%emt 0:00:38]} e6
{[%emt 0:00:19]} 5. d4 {[%emt 0:00:54]} Nf6 {[%emt 0:01:08]} 6. Nbd2 {[%emt 0:
00:35]} Nbd7 {[%emt 0:01:04]} 7. Re1 {[%emt 0:00:16]} Be7 {[%emt 0:02:07]} 8.
e4 {[%emt 0:00:27]} dxe4 {[%emt 0:03:49]} 9. Nxe4 {[%emt 0:00:04]} Nxe4 {
[%emt 0:00:25]} 10. Rxe4 {[%emt 0:00:05]} Bh5 {[%emt 0:04:03]} 11. c3 {[%emt 0:
01:54]} O-O {[%emt 0:01:55]} 12. Re1 {[%emt 0:01:56]} Re8 {[%emt 0:04:12]} 13.
Qb3 {[%emt 0:14:10]} Qb6 {[%emt 0:04:08]} 14. Nd2 {[%emt 0:02:23]} a6 {[%emt 0:
07:35]} 15. Nc4 {[%emt 0:00:30]} Qb5 {[%emt 0:00:04]} 16. Bf4 {[%emt 0:07:32]}
Bg6 {[%emt 0:05:30]} 17. Bf1 {[%emt 0:05:51]} h6 {[%emt 0:13:19]} 18. Qd1 {
[%emt 0:08:09]} Qf5 {[%emt 0:06:59]} 19. a4 {[%emt 0:04:10]} Nf6 {[%emt 0:07:
59]} 20. a5 {[%emt 0:21:28]} Nd5 {[%emt 0:03:13]} 21. Be5 {[%emt 0:01:57]} Rad8
{[%emt 0:07:55]} 22. g4 {[%emt 0:11:36]} Qg5 {[%emt 0:03:48]} 23. Bg3 {[%emt 0:
00:29]} h5 {[%emt 0:02:19]} 24. Re5 {[%emt 0:03:12]} Qh6 {[%emt 0:00:03]} 25.
gxh5 {[%emt 0:02:01]} Bf5 {[%emt 0:00:03]} 26. Qf3 {[%emt 0:01:28]} Bg5 {
[%emt 0:07:04]} 27. h4 {[%emt 0:04:57]} Be7 {[%emt 0:03:21]} 28. Rae1 {[%emt 0:
01:27]} Kh8 {[%emt 0:04:10]} 29. Kh2 {[%emt 0:04:29]} Bf6 {[%emt 0:00:37]} 30.
R5e2 {[%emt 0:01:38]} g6 {[%emt 0:01:28]} 31. Nd6 {[%emt 0:00:28]} Rxd6 {
[%emt 0:00:49]} 32. Bxd6 {[%emt 0:00:03]} Bxh4 {[%emt 0:00:14]} 33. Bh3 {
[%emt 0:00:48]} Bg5 {[%emt 0:00:46]} 34. Be5+ {[%emt 0:00:53]} f6 {[%emt 0:01:
13]} 35. Bg3 {[%emt 0:00:12]} Nf4 {[%emt 0:00:02]} 36. Bxf4 {[%emt 0:00:36]}
Bxf4+ {[%emt 0:00:03]} 37. Kh1 {[%emt 0:00:05]} e5 {[%emt 0:01:02]} 38. dxe5 {
[%emt 0:00:12]} fxe5 {[%emt 0:00:03]} 39. Bxf5 {[%emt 0:00:16]} gxf5 {[%emt 0:
00:04]} 40. Qh3 {[%emt 0:00:58]} Qe6 {[%emt 0:01:47]} 41. Rg1 {[%emt 0:03:12]}
Rd8 {[%emt 0:02:20]} 42. f3 {[%emt 0:01:21]} Rd7 {[%emt 0:01:55]} 43. Reg2 {
[%emt 0:10:27]} Rh7 {[%emt 0:02:17]} 44. Qh4 {[%emt 0:02:35]} Rd7 {[%emt 0:02:
01]} 45. Rg6 {[%emt 0:00:57]} Qf7 {[%emt 0:00:17]} 46. h6 {[%emt 0:05:50]} Qf8
{[%emt 0:03:33]} 47. Rg8+ {[%emt 0:01:25]} Qxg8 {[%emt 0:00:11]} 48. Qf6+ {
[%emt 0:00:22]} 1-0

[Event "23rd ETCC Women 2021"]
[Site "Catez"]
[Date "2021.11.15"]
[Round "4.6"]
[White "Zimina, Olga"]
[Black "Mkrtchian, Lilit"]
[Result "1-0"]
[ECO "D02"]
[WhiteElo "2339"]
[BlackElo "2379"]
[Annotator "NA"]
[PlyCount "77"]
[EventDate "2021.11.08"]
[EventType "team-tourn"]
[EventCountry "SLO"]
[SourceTitle "playchess.com"]
[Source "ChessBase"]
[SourceQuality "1"]
[WhiteTeam "Italy"]
[BlackTeam "Armenia"]
[WhiteTeamCountry "ITA"]
[BlackTeamCountry "ARM"]
[TimeControl "40/5400+30:1800+30"]

1. d4 {[%emt 0:00:06]} Nf6 {[%emt 0:00:36]} 2. Nf3 {[%emt 0:00:06]} e6 {
[%emt 0:02:12]} 3. g3 {[%emt 0:00:07]} d5 {[%emt 0:02:11]} 4. Bg2 {[%emt 0:00:
10]} Nbd7 {[%emt 0:01:01]} 5. O-O {[%emt 0:00:12]} b5 {[%emt 0:03:45]} 6. a4 {
[%emt 0:01:09]} b4 {[%emt 0:00:06]} 7. c4 {[%emt 0:00:06]} bxc3 {[%emt 0:00:26]
} 8. Nxc3 {[%emt 0:00:04]} Ba6 {[%emt 0:05:47]} 9. Bf4 {[%emt 0:02:07]} c6 {
[%emt 0:00:48]} 10. Qc2 {[%emt 0:03:45]} Be7 {[%emt 0:01:22]} 11. Rfc1 {
[%emt 0:00:37]} O-O {[%emt 0:05:27]} 12. e4 {[%emt 0:03:28]} Rc8 {[%emt 0:04:
12]} 13. e5 {[%emt 0:01:46]} Ne8 {[%emt 0:00:07]} 14. h4 {[%emt 0:00:45]} c5 {
[%emt 0:03:05]} 15. Nb5 {[%emt 0:01:44]} Qb6 {[%emt 0:08:01]} 16. Bf1 {[%emt 0:
02:05]} cxd4 {[%emt 0:10:40]} 17. Qd1 {[%emt 0:06:24]} Rxc1 {[%emt 0:20:12]}
18. Rxc1 {[%emt 0:01:57]} Bb7 {[%emt 0:01:10]} 19. Nbxd4 {[%emt 0:26:31]} Nc5 {
[%emt 0:10:43]} 20. Be3 {[%emt 0:15:44]} a6 {[%emt 0:07:26]} 21. Qc2 {[%emt 0:
04:20]} Ne4 {[%emt 0:03:31]} 22. Nf5 {[%emt 0:02:29]} Qd8 {[%emt 0:00:28]} 23.
Nxe7+ {[%emt 0:00:54]} Qxe7 {[%emt 0:00:03]} 24. Bd3 {[%emt 0:10:46]} Qd7 {
[%emt 0:02:35]} 25. Bd4 {[%emt 0:06:21]} f6 {[%emt 0:00:55]} 26. b4 {[%emt 0:
01:23]} fxe5 {[%emt 0:03:51]} 27. Nxe5 {[%emt 0:00:05]} Qd6 {[%emt 0:02:43]}
28. Qb2 {[%emt 0:00:05]} N8f6 {[%emt 0:00:14]} 29. Bc5 {[%emt 0:02:07]} Nxc5 {
[%emt 0:00:15]} 30. bxc5 {[%emt 0:00:04]} Qc7 {[%emt 0:00:09]} 31. c6 {[%emt 0:
01:22]} Bc8 {[%emt 0:00:10]} 32. Qd4 {[%emt 0:00:26]} Ne8 {[%emt 0:00:51]} 33.
a5 {[%emt 0:02:46]} Qxa5 {[%emt 0:00:34]} 34. c7 {[%emt 0:02:41]} Nxc7 {
[%emt 0:01:23]} 35. Ra1 {[%emt 0:00:07]} Nb5 {[%emt 0:00:12]} 36. Bxh7+ {
[%emt 0:00:11]} Kh8 {[%emt 0:00:41]} 37. Qd1 {[%emt 0:00:36]} Nc3 {[%emt 0:00:
37]} 38. Ng6+ {[%emt 0:00:08]} Kxh7 {[%emt 0:00:05]} 39. Qh5+ {[%emt 0:00:04]}
1-0

[Event "23rd ETCC Women 2021"]
[Site "Catez"]
[Date "2021.11.15"]
[Round "4.7"]
[White "Sargsyan, Anna M."]
[Black "Sedina, Elena"]
[Result "1/2-1/2"]
[ECO "D02"]
[WhiteElo "2385"]
[BlackElo "2263"]
[Annotator "NA"]
[PlyCount "147"]
[EventDate "2021.11.08"]
[EventType "team-tourn"]
[EventCountry "SLO"]
[SourceTitle "playchess.com"]
[Source "ChessBase"]
[SourceQuality "1"]
[WhiteTeam "Armenia"]
[BlackTeam "Italy"]
[WhiteTeamCountry "ARM"]
[BlackTeamCountry "ITA"]
[TimeControl "40/5400+30:1800+30"]

1. d4 {[%emt 0:00:13]} d5 {[%emt 0:00:20]} 2. Nf3 {[%emt 0:00:12]} Nf6 {
[%emt 0:00:39]} 3. Bf4 {[%emt 0:00:18]} c5 {[%emt 0:02:14]} 4. e3 {[%emt 0:00:
30]} Nc6 {[%emt 0:04:43]} 5. Nbd2 {[%emt 0:00:06]} e6 {[%emt 0:09:35]} 6. c3 {
[%emt 0:02:53]} Bd6 {[%emt 0:00:14]} 7. Bg5 {[%emt 0:00:25]} O-O {[%emt 0:08:
28]} 8. Bd3 {[%emt 0:00:11]} e5 {[%emt 0:20:40]} 9. dxe5 {[%emt 0:00:09]} Nxe5
{[%emt 0:00:06]} 10. Nxe5 {[%emt 0:00:25]} Bxe5 {[%emt 0:00:06]} 11. O-O {
[%emt 0:00:20]} h6 {[%emt 0:04:33]} 12. Bh4 {[%emt 0:00:21]} Qb6 {[%emt 0:10:
52]} 13. Qc2 {[%emt 0:02:32]} Re8 {[%emt 0:08:04]} 14. Kh1 {[%emt 0:02:08]} Bc7
{[%emt 0:01:05]} 15. c4 {[%emt 0:04:06]} Qd6 {[%emt 0:06:06]} 16. Bg3 {[%emt 0:
09:28]} Qe7 {[%emt 0:00:07]} 17. cxd5 {[%emt 0:06:10]} Bxg3 {[%emt 0:04:20]}
18. hxg3 {[%emt 0:00:23]} Nxd5 {[%emt 0:00:07]} 19. Bb5 {[%emt 0:01:49]} Bd7 {
[%emt 0:05:31]} 20. Bxd7 {[%emt 0:02:48]} Qxd7 {[%emt 0:00:01]} 21. Rad1 {
[%emt 0:00:09]} b6 {[%emt 0:03:15]} 22. a3 {[%emt 0:02:14]} Rad8 {[%emt 0:01:
26]} 23. e4 {[%emt 0:03:24]} Nf6 {[%emt 0:00:08]} 24. f3 {[%emt 0:04:28]} Qd3 {
[%emt 0:07:59]} 25. Qc1 {[%emt 0:04:47]} Qe3 {[%emt 0:01:35]} 26. Rfe1 {
[%emt 0:02:35]} Qf2 {[%emt 0:00:13]} 27. Nf1 {[%emt 0:00:11]} h5 {[%emt 0:00:
52]} 28. Kh2 {[%emt 0:06:56]} h4 {[%emt 0:00:34]} 29. g4 {[%emt 0:00:36]} g6 {
[%emt 0:00:28]} 30. Rxd8 {[%emt 0:04:02]} Rxd8 {[%emt 0:00:02]} 31. e5 {
[%emt 0:00:17]} Re8 {[%emt 0:01:06]} 32. Qd1 {[%emt 0:02:53]} Nh7 {[%emt 0:00:
23]} 33. Re2 {[%emt 0:02:38]} Qd4 {[%emt 0:00:04]} 34. Qe1 {[%emt 0:00:04]} Ng5
{[%emt 0:00:58]} 35. Qd2 {[%emt 0:05:00]} Ne6 {[%emt 0:00:29]} 36. Qxd4 {
[%emt 0:02:35]} Nxd4 {[%emt 0:00:06]} 37. Re3 {[%emt 0:00:26]} g5 {[%emt 0:00:
54]} 38. Nd2 {[%emt 0:00:11]} Nc6 {[%emt 0:00:16]} 39. Nc4 {[%emt 0:02:21]} Re6
{[%emt 0:00:20]} 40. a4 {[%emt 0:00:37]} Kg7 {[%emt 0:00:20]} 41. g3 {[%emt 0:
32:46]} hxg3+ {[%emt 0:30:49]} 42. Kxg3 {[%emt 0:00:06]} Kg6 {[%emt 0:00:44]}
43. f4 {[%emt 0:02:06]} gxf4+ {[%emt 0:00:00]} 44. Kxf4 {[%emt 0:00:00]} Re8 {
[%emt 0:00:00]} 45. Rh3 {[%emt 0:00:00]} Rd8 {[%emt 0:00:00]} 46. Nd6 {[%emt 0:
00:00]} f6 {[%emt 0:00:00]} 47. Nf5 {[%emt 0:00:00]} fxe5+ {[%emt 0:00:00]} 48.
Ke4 {[%emt 0:00:00]} Kg5 {[%emt 0:00:00]} 49. Rh7 {[%emt 0:00:00]} Kxg4 {
[%emt 0:00:27]} 50. Rc7 {[%emt 0:00:00]} Nd4 {[%emt 0:00:27]} 51. Ne3+ {
[%emt 0:00:00]} Kg5 {[%emt 0:01:24]} 52. Rxa7 {[%emt 0:00:00]} Nc6 {[%emt 0:00:
12]} 53. Rg7+ {[%emt 0:00:00]} Kf6 {[%emt 0:01:00]} 54. Rb7 {[%emt 0:00:00]}
Rd4+ {[%emt 0:00:06]} 55. Kf3 {[%emt 0:00:00]} Rf4+ {[%emt 0:02:12]} 56. Kg3 {
[%emt 0:00:00]} Ke6 {[%emt 0:00:50]} 57. Rxb6 {[%emt 0:00:00]} Kd7 {[%emt 0:00:
01]} 58. Rb7+ {[%emt 0:00:00]} Kc8 {[%emt 0:00:11]} 59. Rb5 {[%emt 0:00:00]}
Rxa4 {[%emt 0:00:23]} 60. Rxc5 {[%emt 0:00:00]} Kd7 {[%emt 0:00:47]} 61. Nc4 {
[%emt 0:00:00]} Ra1 {[%emt 0:00:18]} 62. Kf3 {[%emt 0:00:00]} Re1 {[%emt 0:00:
20]} 63. Kf2 {[%emt 0:00:00]} Re4 {[%emt 0:00:15]} 64. b3 {[%emt 0:00:00]} Rh4
{[%emt 0:00:33]} 65. Rb5 {[%emt 0:00:00]} Kc7 {[%emt 0:00:16]} 66. Ke1 {
[%emt 0:00:00]} Rd4 {[%emt 0:01:40]} 67. Rc5 {[%emt 0:00:00]} Kd7 {[%emt 0:00:
34]} 68. Ke2 {[%emt 0:00:00]} e4 {[%emt 0:00:21]} 69. Rh5 {[%emt 0:00:00]} Rd3
{[%emt 0:00:51]} 70. Rh7+ {[%emt 0:00:00]} Kd8 {[%emt 0:00:15]} 71. Rh8+ {
[%emt 0:00:00]} Kc7 {[%emt 0:00:18]} 72. Rh7+ {[%emt 0:00:00]} Kd8 {[%emt 0:00:
03]} 73. Rh8+ {[%emt 0:00:00]} Kc7 {[%emt 0:00:03]} 74. Rh7+ {[%emt 0:00:00]}
1/2-1/2

[Event "23rd ETCC Women 2021"]
[Site "Catez"]
[Date "2021.11.15"]
[Round "4.8"]
[White "Movileanu, Daniela"]
[Black "Gaboyan, Susanna"]
[Result "1-0"]
[ECO "B33"]
[WhiteElo "2214"]
[BlackElo "2253"]
[Annotator "NA"]
[PlyCount "99"]
[EventDate "2021.11.08"]
[EventType "team-tourn"]
[EventCountry "SLO"]
[SourceTitle "playchess.com"]
[Source "ChessBase"]
[SourceQuality "1"]
[WhiteTeam "Italy"]
[BlackTeam "Armenia"]
[WhiteTeamCountry "ITA"]
[BlackTeamCountry "ARM"]
[TimeControl "40/5400+30:1800+30"]

1. e4 {[%emt 0:00:02]} c5 {[%emt 0:00:06]} 2. Nf3 {[%emt 0:00:10]} Nc6 {
[%emt 0:00:08]} 3. d4 {[%emt 0:00:18]} cxd4 {[%emt 0:00:06]} 4. Nxd4 {[%emt 0:
00:06]} Nf6 {[%emt 0:00:00]} 5. Nc3 {[%emt 0:00:12]} e5 {[%emt 0:00:13]} 6.
Ndb5 {[%emt 0:00:13]} d6 {[%emt 0:00:06]} 7. Bg5 {[%emt 0:00:22]} a6 {[%emt 0:
00:06]} 8. Na3 {[%emt 0:00:09]} b5 {[%emt 0:00:04]} 9. Bxf6 {[%emt 0:00:27]}
gxf6 {[%emt 0:00:07]} 10. Nd5 {[%emt 0:00:18]} f5 {[%emt 0:00:05]} 11. Bd3 {
[%emt 0:00:49]} Be6 {[%emt 0:00:08]} 12. c3 {[%emt 0:00:36]} Bxd5 {[%emt 0:03:
27]} 13. exd5 {[%emt 0:00:21]} Ne7 {[%emt 0:00:07]} 14. Nxb5 {[%emt 0:02:18]}
Bg7 {[%emt 0:00:14]} 15. Na3 {[%emt 0:00:56]} O-O {[%emt 0:00:30]} 16. O-O {
[%emt 0:01:42]} e4 {[%emt 0:00:29]} 17. Bc2 {[%emt 0:06:35]} Ng6 {[%emt 0:02:
28]} 18. Nc4 {[%emt 0:18:49]} Qh4 {[%emt 0:08:36]} 19. g3 {[%emt 0:10:36]} Qh3
{[%emt 0:02:51]} 20. f4 {[%emt 0:03:14]} Rfd8 {[%emt 0:34:33]} 21. Qe2 {
[%emt 0:04:16]} Ne7 {[%emt 0:05:28]} 22. Rfd1 {[%emt 0:03:58]} Qh6 {[%emt 0:03:
10]} 23. a4 {[%emt 0:03:08]} a5 {[%emt 0:01:17]} 24. Ra3 {[%emt 0:07:02]} Rdb8
{[%emt 0:02:15]} 25. Rb3 {[%emt 0:03:31]} Rxb3 {[%emt 0:00:07]} 26. Bxb3 {
[%emt 0:00:06]} Nc8 {[%emt 0:01:29]} 27. Ne3 {[%emt 0:02:50]} Qf6 {[%emt 0:01:
58]} 28. Bc4 {[%emt 0:00:50]} Qg6 {[%emt 0:04:43]} 29. Bb5 {[%emt 0:06:04]} Bf6
{[%emt 0:01:55]} 30. Bc6 {[%emt 0:04:27]} Rb8 {[%emt 0:01:11]} 31. Bd7 {
[%emt 0:00:24]} Ne7 {[%emt 0:01:52]} 32. Nc4 {[%emt 0:00:17]} Ra8 {[%emt 0:09:
23]} 33. Bc6 {[%emt 0:07:37]} Rd8 {[%emt 0:04:57]} 34. Nxa5 {[%emt 0:00:58]} h5
{[%emt 0:00:11]} 35. Bb5 {[%emt 0:02:56]} h4 {[%emt 0:00:52]} 36. Qe3 {[%emt 0:
00:46]} Kg7 {[%emt 0:02:57]} 37. Nc6 {[%emt 0:05:52]} Rh8 {[%emt 0:01:09]} 38.
Nxe7 {[%emt 0:03:14]} Bxe7 {[%emt 0:00:07]} 39. Rd2 {[%emt 0:00:21]} Kf8 {
[%emt 0:01:34]} 40. Rg2 {[%emt 0:01:08]} hxg3 {[%emt 0:02:30]} 41. Qxg3 {
[%emt 0:31:58]} Qh6 {[%emt 0:30:09]} 42. b4 {[%emt 0:00:00]} Bh4 {[%emt 0:00:
00]} 43. Qe3 {[%emt 0:00:00]} Ke7 {[%emt 0:00:00]} 44. a5 {[%emt 0:00:00]} Rc8
{[%emt 0:00:00]} 45. a6 {[%emt 0:00:00]} Bf6 {[%emt 0:00:00]} 46. Bc6 {[%emt 0:
00:00]} Be5 {[%emt 0:00:00]} 47. Qa7+ {[%emt 0:00:00]} Kf8 {[%emt 0:00:00]} 48.
Qd7 {[%emt 0:00:00]} Qxf4 {[%emt 0:00:00]} 49. Qxc8+ {[%emt 0:00:00]} Ke7 {
[%emt 0:00:00]} 50. Qe8+ {[%emt 0:00:00]} 1-0

[Event "23rd ETCC Women 2021"]
[Site "Catez"]
[Date "2021.11.15"]
[Round "4.9"]
[White "Repkova, Eva"]
[Black "Zawadzka, Jolanta"]
[Result "1-0"]
[ECO "B44"]
[WhiteElo "2307"]
[BlackElo "2429"]
[Annotator "NA"]
[PlyCount "77"]
[EventDate "2021.11.08"]
[EventType "team-tourn"]
[EventCountry "SLO"]
[SourceTitle "playchess.com"]
[Source "ChessBase"]
[SourceQuality "1"]
[WhiteTeam "Slovakia"]
[BlackTeam "Poland"]
[WhiteTeamCountry "SVK"]
[BlackTeamCountry "POL"]
[TimeControl "40/5400+30:1800+30"]

1. e4 {[%emt 0:00:25]} c5 {[%emt 0:00:04]} 2. Nf3 {[%emt 0:00:09]} e6 {[%emt 0:
00:05]} 3. d4 {[%emt 0:00:06]} cxd4 {[%emt 0:00:05]} 4. Nxd4 {[%emt 0:00:04]}
Nc6 {[%emt 0:00:03]} 5. Nb5 {[%emt 0:00:08]} d6 {[%emt 0:00:14]} 6. c4 {
[%emt 0:00:04]} Nf6 {[%emt 0:00:29]} 7. N5c3 {[%emt 0:00:06]} Be7 {[%emt 0:01:
41]} 8. Be2 {[%emt 0:00:07]} O-O {[%emt 0:03:01]} 9. O-O {[%emt 0:00:05]} b6 {
[%emt 0:04:35]} 10. Bf4 {[%emt 0:01:31]} Bb7 {[%emt 0:02:11]} 11. Re1 {[%emt 0:
00:07]} Rc8 {[%emt 0:06:01]} 12. Nd2 {[%emt 0:00:32]} Nd4 {[%emt 0:10:38]} 13.
Bf1 {[%emt 0:00:14]} e5 {[%emt 0:00:21]} 14. Be3 {[%emt 0:04:18]} Ne6 {[%emt 0:
00:37]} 15. Rc1 {[%emt 0:09:29]} Nd7 {[%emt 0:06:52]} 16. Qc2 {[%emt 0:15:59]}
a6 {[%emt 0:09:04]} 17. Nf3 {[%emt 0:02:33]} Nf6 {[%emt 0:11:42]} 18. Rcd1 {
[%emt 0:00:40]} Qc7 {[%emt 0:01:14]} 19. Nd5 {[%emt 0:02:15]} Nxd5 {[%emt 0:02:
09]} 20. exd5 {[%emt 0:00:06]} Nc5 {[%emt 0:00:30]} 21. Ng5 {[%emt 0:09:03]} g6
{[%emt 0:03:56]} 22. h4 {[%emt 0:00:32]} f6 {[%emt 0:04:48]} 23. Nf3 {[%emt 0:
02:52]} f5 {[%emt 0:02:49]} 24. Bh6 {[%emt 0:02:24]} Rf7 {[%emt 0:01:25]} 25.
b4 {[%emt 0:07:44]} Ne4 {[%emt 0:01:02]} 26. Qb3 {[%emt 0:03:00]} Kh8 {[%emt 0:
06:35]} 27. Rc1 {[%emt 0:12:21]} Bf6 {[%emt 0:02:20]} 28. Bd3 {[%emt 0:01:00]}
Qd7 {[%emt 0:07:35]} 29. Bxe4 {[%emt 0:02:19]} fxe4 {[%emt 0:00:01]} 30. Rxe4 {
[%emt 0:00:06]} Qf5 {[%emt 0:00:53]} 31. Rce1 {[%emt 0:00:50]} b5 {[%emt 0:01:
03]} 32. c5 {[%emt 0:07:07]} dxc5 {[%emt 0:00:39]} 33. bxc5 {[%emt 0:00:03]}
Rxc5 {[%emt 0:06:55]} 34. Nxe5 {[%emt 0:02:34]} Bxe5 {[%emt 0:03:06]} 35. Rxe5
{[%emt 0:00:08]} Qxf2+ {[%emt 0:00:02]} 36. Kh2 {[%emt 0:00:32]} Rf8 {[%emt 0:
01:51]} 37. Re8 {[%emt 0:04:00]} Rc8 {[%emt 0:01:47]} 38. Rxf8+ {[%emt 0:00:43]
} Rxf8 {[%emt 0:00:05]} 39. Qc3+ {[%emt 0:00:24]} 1-0

[Event "23rd ETCC Women 2021"]
[Site "Catez"]
[Date "2021.11.15"]
[Round "4.10"]
[White "Cyfka, Karina"]
[Black "Hagarova, Zuzana"]
[Result "1-0"]
[ECO "E92"]
[WhiteElo "2416"]
[BlackElo "2292"]
[Annotator "NA"]
[PlyCount "59"]
[EventDate "2021.11.08"]
[EventType "team-tourn"]
[EventCountry "SLO"]
[SourceTitle "playchess.com"]
[Source "ChessBase"]
[SourceQuality "1"]
[WhiteTeam "Poland"]
[BlackTeam "Slovakia"]
[WhiteTeamCountry "POL"]
[BlackTeamCountry "SVK"]
[TimeControl "40/5400+30:1800+30"]

1. d4 {[%emt 0:00:06]} Nf6 {[%emt 0:00:10]} 2. c4 {[%emt 0:00:21]} g6 {[%emt 0:
00:15]} 3. Nc3 {[%emt 0:00:33]} Bg7 {[%emt 0:00:18]} 4. e4 {[%emt 0:00:49]} d6
{[%emt 0:00:21]} 5. Nf3 {[%emt 0:00:12]} O-O {[%emt 0:00:22]} 6. Be2 {[%emt 0:
00:30]} e5 {[%emt 0:00:35]} 7. Be3 {[%emt 0:00:28]} Ng4 {[%emt 0:06:38]} 8. Bg5
{[%emt 0:00:18]} f6 {[%emt 0:00:22]} 9. Bc1 {[%emt 0:00:08]} a5 {[%emt 0:08:07]
} 10. h3 {[%emt 0:04:45]} exd4 {[%emt 0:03:56]} 11. Nxd4 {[%emt 0:01:24]} Ne5 {
[%emt 0:00:13]} 12. O-O {[%emt 0:12:18]} Nbc6 {[%emt 0:12:07]} 13. Ndb5 {
[%emt 0:02:13]} f5 {[%emt 0:01:28]} 14. f4 {[%emt 0:10:28]} Nf7 {[%emt 0:01:14]
} 15. Nd5 {[%emt 0:03:36]} fxe4 {[%emt 0:00:54]} 16. Ndxc7 {[%emt 0:00:29]} Rb8
{[%emt 0:06:38]} 17. Be3 {[%emt 0:04:23]} Bxb2 {[%emt 0:12:25]} 18. Rb1 {
[%emt 0:04:30]} Bg7 {[%emt 0:01:23]} 19. c5 {[%emt 0:05:56]} dxc5 {[%emt 0:07:
39]} 20. Bxc5 {[%emt 0:00:12]} Qh4 {[%emt 0:01:42]} 21. Qe1 {[%emt 0:10:26]}
Qh6 {[%emt 0:05:09]} 22. Bc4 {[%emt 0:02:48]} Bf5 {[%emt 0:12:02]} 23. Nd6 {
[%emt 0:04:09]} Nd4 {[%emt 0:09:35]} 24. Rd1 {[%emt 0:04:54]} Nc2 {[%emt 0:03:
16]} 25. Qe2 {[%emt 0:05:09]} b5 {[%emt 0:05:09]} 26. Bxf7+ {[%emt 0:03:14]}
Kh8 {[%emt 0:00:51]} 27. Qxc2 {[%emt 0:01:10]} e3 {[%emt 0:00:32]} 28. Nxf5 {
[%emt 0:01:13]} gxf5 {[%emt 0:00:09]} 29. Bxf8 {[%emt 0:00:44]} Rxf8 {[%emt 0:
00:36]} 30. Ne6 {[%emt 0:00:23]} 1-0